[Event "Guimaraes Open 2018"]
[Site "Guimaraes"]
[Date "2018.10.07"]
[Round "7"]
[White "Fernandes, Miguel Antonio"]
[Black "Chueca Forcen, Alberto"]
[Result "0-1"]
[ECO "D20"]
[WhiteElo "2048"]
[BlackElo "2278"]
[Annotator "NA"]
[PlyCount "52"]
[EventDate "2018.10.04"]
[EventType "swiss"]
[EventCountry "POR"]
[SourceTitle "playchess.com"]
[Source "ChessBase"]
[SourceQuality "1"]
[TimeControl "5400+30"]

1. d4 {[%emt 0:00:00]} d5 {[%emt 0:02:14]} 2. c4 {[%emt 0:00:00]} dxc4 {[%emt 0:00:06]} 3. e4 {[%emt 0:00:25]} Nf6 {[%emt 0:00:04]} 4. Nc3 {[%emt 0:00:15]} e5 {[%emt 0:00:25]} 5. d5 {[%emt 0:00:57]} c6 {[%emt 0:00:15]} 6. Bxc4 {[%emt 0:00:11]} b5 {[%emt 0:00:05]} 7. Bb3 {[%emt 0:03:43] D20: Queen's Gambit Accepted: 3 e3 and 3 e4} b4 {[%emt 0:00:08]} 8. Na4 {[%emt 0:00:26]} cxd5 {[%emt 0:01:19]} 9. Bg5 $146 {[%emt 0:06:19]} ({Predecessor:} 9. Nf3 Be7 10. Bg5 Nbd7 11. exd5 Bd6 12. Nd2 O-O 13. Nc4 Bc5 14. O-O Bd4 {½-½ (64) Jelling,E (2365)-Fedder,S (2400) Denmark 1991}) 9... Bb7 {[%emt 0:08:09]} 10. Nf3 {[%emt 0:03:44]} Be7 {[%emt 0:07:31]} 11. exd5 {[%emt 0:03:38]} e4 {[%emt 0:03:28]} 12. Nh4 {[%emt 0:04:29]} g6 {[%emt 0:11:44]} 13. Qd4 {[%emt 0:02:51]} ({Lieber} 13. d6 $11 Bxd6 14. Nc5) 13... Nc6 {[%emt 0:07:16]} 14. Qd2 {[%emt 0:01:38]} Na5 {[%emt 0:07:31]} 15. Qf4 {[%emt 0:06:31]} Nxb3 {[%emt 0:06:50]} 16. axb3 {[%emt 0:02:27]} Nxd5 {[%emt 0:07:24]} 17. Qxe4 {[%emt 0:01:10]} O-O {[%emt 0:00:58]} 18. Bxe7 {[%emt 0:01:19]} Re8 {[%emt 0:00:46]} 19. O-O {[%emt 0:00:53]} Rxe7 {[%emt 0:00:45]} 20. Qd4 {[%emt 0:02:09]} Rc8 {[%emt 0:07:50]} 21. Rfd1 {[%emt 0:03:28]} Qc7 {[%emt 0:01:52]} 22. Qd2 {[%emt 0:04:05]} Nf4 {[%emt 0:02:04]} 23. Re1 {[%emt 0:04:07]} Rce8 $19 {[%emt 0:03:47]} 24. Qxb4 {[%emt 0:03:51]} Ne2+ {[%emt 0:03:49]} 25. Kh1 {[%emt 0:00:47]} Re4 {[%emt 0:00:57]} 26. Qc5 {[%emt 0:00:06]} Qxh2+ {[%emt 0:00:33]} 0-1

[Event "Guimaraes Open 2018"]
[Site "Guimaraes"]
[Date "2018.10.07"]
[Round "7"]
[White "Cimpean, Andra"]
[Black "Ferreira, Hugo Miguel Da Cost"]
[Result "0-1"]
[ECO "B16"]
[WhiteElo "1867"]
[BlackElo "2130"]
[Annotator "NA"]
[PlyCount "122"]
[EventDate "2018.10.04"]
[EventType "swiss"]
[EventCountry "POR"]
[SourceTitle "playchess.com"]
[Source "ChessBase"]
[SourceQuality "1"]
[TimeControl "5400+30"]

1. e4 {[%emt 0:00:00]} c6 {[%emt 0:00:00]} 2. d4 {[%emt 0:00:00]} d5 {[%emt 0:00:00]} 3. Nc3 {[%emt 0:00:00]} dxe4 {[%emt 0:00:00]} 4. Nxe4 {[%emt 0:00:04]} Nf6 {[%emt 0:00:00]} 5. Nxf6+ {[%emt 0:02:07]} gxf6 {[%emt 0:02:29]} 6. c3 {[%emt 0:03:36]} e5 {[%emt 0:01:55] B16: Caro-Kann: Bronstein-Larsen Variation} (6... Bf5 7. Nf3 Nd7 8. g3 Qc7 9. Bg2 e6 10. Nh4 Bg6 11. Bf4 Bd6 12. Bxd6 Qxd6 13. O-O f5 14. b4 Nf6 15. a4 a6 16. Re1 O-O 17. a5 {½-½ (93) Grandelius,N (2646)-Li,C (2755) Stavanger 2016 CBM 172 [Skembris,S]}) 7. Be3 {[%emt 0:07:32]} Be6 {[%emt 0:01:48]} 8. Bd3 $146 {[%emt 0:07:13]} ({Predecessor:} 8. Qh5 Qb6 9. O-O-O Qa5 10. dxe5 Qxa2 11. exf6 Nd7 12. Bd3 O-O-O 13. Bf5 Ba3 14. bxa3 Qxa3+ {0-1 (24) Cristobal,M (2145)-Moreda,L (2322) Mar del Plata 2009}) 8... Nd7 {[%emt 0:08:34]} 9. Nf3 {[%emt 0:03:10]} Qc7 {[%emt 0:12:00]} 10. Nh4 {[%emt 0:07:48]} O-O-O {[%emt 0:02:13]} 11. Nf5 {[%emt 0:02:43]} h5 {[%emt 0:04:04]} 12. Qa4 {[%emt 0:07:12]} Nc5 {[%emt 0:03:05]} 13. dxc5 {[%emt 0:06:35]} Rxd3 {[%emt 0:00:24]} 14. Nd6+ {[%emt 0:00:18]} Bxd6 {[%emt 0:01:01]} 15. cxd6 {[%emt 0:00:18]} Qxd6 {[%emt 0:01:10]} 16. Qxa7 {[%emt 0:01:33]} Rd8 {[%emt 0:01:18]} 17. O-O {[%emt 0:04:07]} Qb8 {[%emt 0:11:08]} 18. Qxb8+ {[%emt 0:00:55]} Kxb8 {[%emt 0:00:39]} 19. a4 {[%emt 0:02:45]} Bc4 {[%emt 0:00:33]} 20. Rfe1 {[%emt 0:00:42]} R8d5 {[%emt 0:01:57]} 21. g3 {[%emt 0:02:44]} Kc7 {[%emt 0:00:23]} 22. a5 {[%emt 0:01:51]} Rb5 {[%emt 0:05:07]} 23. Ra4 {[%emt 0:07:14]} Bb3 {[%emt 0:03:01]} 24. Rh4 {[%emt 0:00:19]} Bd1 {[%emt 0:00:30]} 25. b4 {[%emt 0:03:32]} Rbd5 {[%emt 0:00:20]} 26. c4 {[%emt 0:00:35]} Rd7 {[%emt 0:00:23]} 27. Kg2 {[%emt 0:01:12]} Rb3 {[%emt 0:00:34]} 28. Bb6+ {[%emt 0:00:42]} Kc8 {[%emt 0:00:41]} 29. h3 {[%emt 0:05:00]} Bf3+ {[%emt 0:01:18]} 30. Kh2 {[%emt 0:00:13]} Rdd3 {[%emt 0:02:32]} 31. g4 {[%emt 0:02:19]} hxg4 {[%emt 0:00:05]} 32. hxg4 {[%emt 0:00:23]} Kd7 {[%emt 0:00:03]} 33. Bc5 {[%emt 0:05:34]} Ke6 {[%emt 0:00:39]} 34. Rh8 {[%emt 0:06:33]} Bxg4 {[%emt 0:00:11]} 35. Re8+ {[%emt 0:01:27]} Kf5 {[%emt 0:00:05]} 36. Re7 {[%emt 0:00:40]} Rd8 {[%emt 0:05:24]} 37. Rxb7 $2 {[%emt 0:05:00]} ({But not} 37. Rxf7 $2 Rh8+ 38. Kg2 (38. Kg1 {leads to mate.} Bf3 39. Rxe5+ Kxe5 40. Bd6+ Kf5 41. Rxf6+ Kxf6 42. Be5+ Kxe5 43. Kf1 Rh1#) 38... Bf3+ 39. Kg3 Bd5+ 40. Re3 Rxe3+ 41. fxe3 Bxf7 $19) (37. Be3 $19) 37... Rh8+ {[%emt 0:00:44]} 38. Kg2 {[%emt 0:01:09]} Bf3+ $19 {[%emt 0:00:18]} (38... Rbh3 $142 39. f3 Rh2+ 40. Kf1 Bxf3 41. Re3 Kf4 42. Rxf3+ Kxf3 43. Rxf7 Rh1+ 44. Bg1 Rg8 45. Rxf6+ Ke4 46. Ke2 Rhxg1 47. b5 Ra1 48. Kd2 cxb5 49. cxb5 Rxa5 50. Rh6 Rxb5 51. Rh4+ Kd5 52. Rh7 Rg2+ 53. Kc3 Rc5+ 54. Kb4 Rb2+ 55. Ka3 Rb8 56. Ra7 e4 57. Ka2 e3 58. Rd7+ Ke6 59. Ra7 e2 60. Ra6+ Kf5 61. Ra7 e1=Q 62. Rf7+ Ke6 63. Rf4 Qb1+ 64. Ka3 Qb3#) 39. Kg3 {[%emt 0:00:16]} Be2+ {[%emt 0:01:09]} (39... Rg8+ $142 40. Kh2 Rc3) 40. Be3 {[%emt 0:00:50]} Bxc4 {[%emt 0:00:04]} 41. Ra1 {[%emt 0:01:38]} Bb5 {[%emt 0:00:41]} 42. a6 {[%emt 0:00:40]} Rxb4 {[%emt 0:00:03]} 43. f3 {[%emt 0:01:13]} Rg8+ {[%emt 0:01:41]} 44. Kh3 {[%emt 0:00:51]} Ra8 {[%emt 0:02:03]} 45. Rb6 {[%emt 0:00:59]} Ra4 {[%emt 0:02:33]} 46. Rxa4 {[%emt 0:00:14]} Bxa4 {[%emt 0:00:03]} 47. a7 {[%emt 0:01:02]} Rxa7 {[%emt 0:00:04]} 48. Rxc6 {[%emt 0:00:19]} Bxc6 {[%emt 0:00:10]} 49. Bxa7 {[%emt 0:00:05]} Bxf3 {[%emt 0:00:03]} 50. Kg3 {[%emt 0:00:15]} Ke4 {[%emt 0:00:35]} 51. Kf2 {[%emt 0:00:46]} f5 {[%emt 0:00:07]} 52. Bb8 {[%emt 0:00:06]} Bh5 {[%emt 0:00:10]} 53. Bc7 {[%emt 0:00:11]} f4 {[%emt 0:00:59]} 54. Bb8 {[%emt 0:00:11]} f5 {[%emt 0:00:37]} 55. Bc7 {[%emt 0:00:12]} f3 {[%emt 0:00:04]} 56. Bb8 {[%emt 0:00:20]} f4 {[%emt 0:00:06]} 57. Bc7 {[%emt 0:00:17]} Kf5 {[%emt 0:00:02]} 58. Bb6 {[%emt 0:00:47]} e4 {[%emt 0:00:05]} 59. Bc5 {[%emt 0:00:17]} e3+ {[%emt 0:00:06]} 60. Kf1 {[%emt 0:00:27]} Bf7 {[%emt 0:00:25]} 61. Kg1 {[%emt 0:01:29]} f2+ {[%emt 0:00:18]} 0-1

[Event "Guimaraes Open 2018"]
[Site "Guimaraes"]
[Date "2018.10.07"]
[Round "7"]
[White "Silva, Pedro Gil Ferreira "]
[Black "Melo, David Emmanuel do V"]
[Result "1-0"]
[ECO "B13"]
[WhiteElo "1837"]
[BlackElo "1590"]
[Annotator "NA"]
[PlyCount "55"]
[EventDate "2018.10.04"]
[EventType "swiss"]
[EventCountry "POR"]
[SourceTitle "playchess.com"]
[Source "ChessBase"]
[SourceQuality "1"]
[TimeControl "5400+30"]

1. e4 {[%emt 0:00:25]} c6 {[%emt 0:00:00]} 2. d4 {[%emt 0:00:51]} d5 {[%emt 0:00:00]} 3. exd5 {[%emt 0:00:08]} cxd5 {[%emt 0:00:00]} 4. Bd3 {[%emt 0:00:09]} Nc6 {[%emt 0:00:14]} 5. c3 {[%emt 0:00:09]} Qc7 {[%emt 0:00:08]} 6. Ne2 {[%emt 0:00:27]} Bg4 {[%emt 0:00:16]} 7. f3 {[%emt 0:00:54]} Bd7 {[%emt 0:00:13]} 8. Bf4 {[%emt 0:00:53]} e5 {[%emt 0:00:07]} 9. dxe5 {[%emt 0:00:30]} Nxe5 {[%emt 0:00:12]} 10. O-O {[%emt 0:01:28]} Bd6 {[%emt 0:00:17]} 11. Nd4 {[%emt 0:23:20]} Ne7 {[%emt 0:01:32]} 12. Qe2 {[%emt 0:08:44]} a6 {[%emt 0:10:06]} 13. Re1 {[%emt 0:07:09]} f6 {[%emt 0:11:23]} 14. Bc2 {[%emt 0:15:15]} O-O {[%emt 0:02:42]} 15. Bg3 {[%emt 0:06:55]} Rfe8 {[%emt 0:11:01]} 16. Bb3 {[%emt 0:09:04]} Qa5 {[%emt 0:03:40]} 17. Nd2 {[%emt 0:03:47]} Kh8 {[%emt 0:02:25]} 18. f4 {[%emt 0:01:16]} Bg4 {[%emt 0:00:25]} 19. Qf1 {[%emt 0:00:25]} N5c6 {[%emt 0:01:43]} 20. N2f3 {[%emt 0:02:29]} Nf5 {[%emt 0:04:31]} 21. Nxf5 {[%emt 0:01:17]} Bxf5 {[%emt 0:00:18]} 22. Rad1 Be4 {[%emt 0:06:03]} 23. Qe2 {[%emt 0:06:32]} h6 {[%emt 0:01:39]} 24. Qd2 {[%emt 0:01:37]} Bxf3 {[%emt 0:01:59]} 25. gxf3 {[%emt 0:00:05]} d4 {[%emt 0:00:21]} 26. Rxe8+ {[%emt 0:00:54] Rc8 Rd8+ Rxd8 [%clk 0:41:38] cxd4 [%clk 0:08:24]} Rxe8 {[%emt 0:00:05] Qxa5 [%clk 0:08:36] Nxd4 [%clk 0:41:33]} 27. cxd4 {[%emt 0:00:30]} Nxd4 {[%emt 0:00:30]} 28. Qxd4 {[%emt 0:00:30]} 1-0

[Event "Guimaraes Open 2018"]
[Site "Guimaraes"]
[Date "2018.10.07"]
[Round "7"]
[White "Guimaraes, Alvaro Jose"]
[Black "Saran Vikash Velumani"]
[Result "1-0"]
[ECO "A00"]
[WhiteElo "1801"]
[BlackElo "1464"]
[Annotator "NA"]
[PlyCount "57"]
[EventDate "2018.10.04"]
[EventType "swiss"]
[EventCountry "POR"]
[SourceTitle "playchess.com"]
[Source "ChessBase"]
[SourceQuality "1"]
[TimeControl "5400+30"]

1. g3 {[%emt 0:00:00]} e5 {[%emt 0:00:02]} 2. Bg2 {[%emt 0:00:00]} d5 {[%emt 0:00:08]} 3. c4 {[%emt 0:00:00]} Nf6 {[%emt 0:03:33]} 4. d3 {[%emt 0:00:16]} Bc5 {[%emt 0:00:33]} 5. cxd5 {[%emt 0:01:35]} O-O {[%emt 0:01:21]} 6. Nc3 {[%emt 0:00:30]} Ng4 {[%emt 0:06:05]} 7. e3 {[%emt 0:02:59]} f5 {[%emt 0:01:41]} 8. Nge2 {[%emt 0:00:49]} Bd6 {[%emt 0:06:15]} 9. O-O {[%emt 0:00:27]} Bd7 {[%emt 0:03:50]} 10. Qb3 {[%emt 0:02:22]} Na6 {[%emt 0:02:28]} 11. d4 {[%emt 0:03:40]} Qe7 {[%emt 0:16:31]} 12. a3 {[%emt 0:02:36]} Rab8 {[%emt 0:04:01]} 13. Bd2 {[%emt 0:00:28]} Kh8 {[%emt 0:00:21]} 14. Rac1 {[%emt 0:02:10]} Qg5 {[%emt 0:02:16]} 15. h3 {[%emt 0:02:28]} exd4 {[%emt 0:05:08]} 16. Nxd4 {[%emt 0:00:48]} Nc5 {[%emt 0:02:35]} 17. Qc2 {[%emt 0:01:00]} Nf6 {[%emt 0:04:51]} 18. e4 {[%emt 0:09:00]} Qh5 {[%emt 0:02:25]} 19. exf5 {[%emt 0:00:35]} a5 {[%emt 0:03:23]} 20. Rce1 {[%emt 0:05:03]} b5 {[%emt 0:05:57]} 21. Ne6 {[%emt 0:02:29]} Bxe6 {[%emt 0:01:24]} 22. dxe6 {[%emt 0:00:50]} b4 {[%emt 0:00:29]} 23. Ne2 {[%emt 0:05:05]} g5 24. Be3 {[%emt 0:02:02]} b3 {[%emt 0:08:53]} 25. Qc4 {[%emt 0:01:54]} Nb7 {[%emt 0:04:02]} 26. Bd4 {[%emt 0:00:30]} Nd8 {[%emt 0:01:30]} 27. Nc3 {[%emt 0:00:48]} c5 {[%emt 0:02:25]} 28. Bxf6+ {[%emt 0:00:48]} Rxf6 {[%emt 0:00:26]} 29. Ne4 {[%emt 0:00:20]} 1-0

[Event "Guimaraes Open 2018"]
[Site "Guimaraes"]
[Date "2018.10.07"]
[Round "7"]
[White "Lopez Rodriguez, Eduardo"]
[Black "Rego, Pedro Filipe Pinho"]
[Result "0-1"]
[ECO "B44"]
[WhiteElo "1800"]
[BlackElo "2251"]
[Annotator "NA"]
[PlyCount "98"]
[EventDate "2018.10.04"]
[EventType "swiss"]
[EventCountry "POR"]
[SourceTitle "playchess.com"]
[Source "ChessBase"]
[SourceQuality "1"]
[TimeControl "5400+30"]

1. e4 {[%emt 0:00:00]} c5 {[%emt 0:00:00]} 2. Nf3 {[%emt 0:00:00]} e6 {[%emt 0:00:00]} 3. d4 {[%emt 0:00:00]} cxd4 {[%emt 0:00:00]} 4. Nxd4 {[%emt 0:00:01]} Nc6 {[%emt 0:00:00]} 5. Bc4 {[%emt 0:01:08]} Nf6 {[%emt 0:00:18]} 6. Nc3 {[%emt 0:03:01]} Qc7 {[%emt 0:01:52] B45: Sicilian Four Knights} 7. Nxc6 {[%emt 0:06:00]} (7. Bb3 a6 8. Be3 b5 9. f3 Bb7 10. g4 h6 11. Nxc6 dxc6 12. a4 Nd7 13. Qe2 Bd6 14. O-O {½-½ (44) Matikozian,A (2451)-Amanov,Z (2382) Los Angeles 2011}) 7... bxc6 {[%emt 0:00:57]} 8. O-O {[%emt 0:01:23]} Be7 {[%emt 0:01:34]} 9. Be3 {[%emt 0:03:42]} O-O {[%emt 0:00:33]} 10. f3 $146 {[%emt 0:04:18]} ({Predecessor:} 10. Bd3 Rd8 11. f4 d5 12. e5 Nd7 13. Bf2 a6 {1-0 (52) Mitrovic,J (2122)-Pistalovic,S (1661) Banja Dvorovi 2018}) 10... d5 {[%emt 0:00:56]} 11. exd5 {[%emt 0:00:38]} cxd5 {[%emt 0:00:06]} 12. Bd3 {[%emt 0:03:15]} e5 {[%emt 0:04:52]} 13. Bf2 {[%emt 0:01:23]} Bb7 {[%emt 0:04:50]} 14. Qe2 {[%emt 0:06:02]} Bc5 {[%emt 0:01:18]} 15. Rfe1 {[%emt 0:03:42] [#]} Rfe8 {[%emt 0:02:35]} ({Günstiger ist} 15... e4 $1 $17 {[%cal Re4d3][%mdl 512]} 16. Bb5 (16. fxe4 dxe4) 16... Bd6) 16. Bxc5 {[%emt 0:05:47]} Qxc5+ {[%emt 0:01:02]} 17. Qf2 $1 {[%emt 0:01:35]} Qb4 {[%emt 0:04:21]} 18. Nb5 {[%emt 0:09:24]} Re7 {[%emt 0:02:23]} ({Don't blunder} 18... Qxb2 $2 19. Reb1 $18) 19. c3 {[%emt 0:03:19]} Qa5 {[%emt 0:01:15]} 20. Nd6 {[%emt 0:03:47]} Bc8 {[%emt 0:01:00]} 21. Nxc8 {[%emt 0:09:49]} Rxc8 {[%emt 0:00:55]} 22. Bc2 {[%emt 0:02:05]} Qb5 {[%emt 0:03:22]} 23. Rad1 {[%emt 0:02:18]} a5 {[%emt 0:02:02]} 24. a4 {[%emt 0:02:03]} Qc6 25. Re2 g6 {[%emt 0:10:22]} 26. Rde1 {[%emt 0:01:56]} Rce8 {[%emt 0:00:14]} 27. Kh1 {[%emt 0:03:34]} Kg7 {[%emt 0:00:56]} 28. h3 {[%emt 0:04:15]} Nh5 {[%emt 0:03:19]} 29. g3 {[%emt 0:01:41]} Qd6 {[%emt 0:06:56]} 30. Kg2 {[%emt 0:03:41]} Rb8 {[%emt 0:00:37]} 31. Bd3 {[%emt 0:01:26]} Nf6 {[%emt 0:04:23]} 32. Rd2 {[%emt 0:03:54]} h5 {[%emt 0:03:50]} 33. h4 {[%emt 0:03:28]} Rd8 {[%emt 0:00:17]} 34. Bb5 {[%emt 0:01:35]} e4 {[%emt 0:07:31]} 35. fxe4 $1 {[%emt 0:02:17]} Rxe4 $11 {[%emt 0:07:25]} 36. Rxe4 {[%emt 0:00:52]} Nxe4 {[%emt 0:00:05]} 37. Qd4+ {[%emt 0:00:22]} Qf6 {[%emt 0:00:50]} 38. Qxf6+ {[%emt 0:00:58]} Kxf6 {[%emt 0:00:07]} 39. Rd4 {[%emt 0:00:36]} Ke5 {[%emt 0:00:10]} 40. Kf3 {[%emt 0:01:05]} Rd6 {[%emt 0:00:31]} 41. Rd3 {[%emt 0:02:42]} Rf6+ {[%emt 0:00:29]} 42. Ke2 {[%emt 0:00:53]} Rf2+ {[%emt 0:01:15]} 43. Kd1 {[%emt 0:00:27]} Rxb2 {[%emt 0:00:26]} 44. Kc1 {[%emt 0:00:01]} Rg2 {[%emt 0:01:58]} 45. Bc6 {[%emt 0:00:14]} Rxg3 {[%emt 0:01:14]} 46. Rxd5+ {[%emt 0:01:24]} Ke6 47. Bb7 Rxc3+ {[%emt 0:02:08]} 48. Kb2 {[%emt 0:00:39]} Rc4 {[%emt 0:06:27]} 49. Kb3 {[%emt 0:01:18]} Rb4+ {[%emt 0:00:11] Kc3 [%clk 0:00:59] Ke5+ Kd4+} 0-1

[Event "Guimaraes Open 2018"]
[Site "Guimaraes"]
[Date "2018.10.07"]
[Round "7"]
[White "Machado, Carlos Antonio"]
[Black "Martins, Bruno Andre Leite"]
[Result "0-1"]
[ECO "B38"]
[WhiteElo "1780"]
[BlackElo "2248"]
[Annotator "NA"]
[PlyCount "70"]
[EventDate "2018.10.04"]
[EventType "swiss"]
[EventCountry "POR"]
[SourceTitle "playchess.com"]
[Source "ChessBase"]
[SourceQuality "1"]
[TimeControl "5400+30"]

1. e4 {[%emt 0:00:00]} c5 {[%emt 0:00:25]} 2. Nf3 {[%emt 0:00:00]} Nc6 {[%emt 0:00:09]} 3. d4 {[%emt 0:00:13]} cxd4 {[%emt 0:00:05]} 4. Nxd4 {[%emt 0:00:07]} g6 {[%emt 0:00:10]} 5. c4 {[%emt 0:00:30]} Bg7 {[%emt 0:00:09]} 6. Be3 {[%emt 0:01:34]} Nf6 {[%emt 0:00:08]} 7. Nc3 {[%emt 0:00:17]} d6 {[%emt 0:00:23]} 8. Be2 {[%emt 0:16:50] LiveBook: 1990 Games} O-O {[%emt 0:01:59]} 9. O-O {[%emt 0:04:49]} Nxd4 {[%emt 0:01:26]} 10. Bxd4 {[%emt 0:01:30]} Bd7 {[%emt 0:00:12]} 11. Bf3 {[%emt 0:04:54] B38: Sicilian: Maroczy Bind with 5...Bg7 and 7...0-0} (11. Qd3 Bc6 12. b4 b6 13. f4 Rc8 14. Rad1 e6 15. Bf2 Qc7 16. Bh4 Rfe8 17. Bf3 Nd7 18. e5 Bxf3 19. Qxf3 Qxc4 {½-½ (40) Romanov,E (2628)-Shaposhnikov,E (2572) Yaroslavl 2018}) 11... Bc6 {[%emt 0:05:18]} 12. Nd5 {[%emt 0:03:37]} Bxd5 $146 {[%emt 0:00:16]} ({Predecessor:} 12... Nd7 13. Bxg7 Kxg7 14. Qd4+ Kg8 15. g3 Bxd5 16. Qxd5 Qb6 17. Kh1 Ne5 18. Bg2 Qc6 {0-1 (59) Gomes,J (1885)-Rocha,V (2100) Natal 2015}) 13. exd5 {[%emt 0:01:33]} a5 {[%emt 0:01:53]} 14. a4 {[%emt 0:06:33]} Nd7 {[%emt 0:00:55]} 15. Bxg7 $11 {[%emt 0:03:47]} Kxg7 {[%emt 0:00:13]} 16. Qd4+ {[%emt 0:00:37]} Kg8 {[%emt 0:00:16]} 17. Rfe1 {[%emt 0:00:32]} Re8 {[%emt 0:00:28]} 18. Ra3 {[%emt 0:01:04]} Qb6 {[%emt 0:02:49]} 19. Qd1 {[%emt 0:13:32]} Qxb2 {[%emt 0:07:35]} 20. Rb3 {[%emt 0:00:10]} Qf6 {[%emt 0:00:35]} 21. Rxb7 {[%emt 0:00:53]} Nc5 {[%emt 0:00:40]} 22. Rc7 {[%emt 0:06:03]} Rab8 {[%emt 0:04:21]} 23. Qd2 {[%emt 0:05:43]} Rb4 {[%emt 0:07:28]} 24. Bd1 {[%emt 0:10:50]} Rxc4 {[%emt 0:09:22]} 25. Qxa5 {[%emt 0:01:23]} Rd4 {[%emt 0:01:14]} 26. Qb5 {[%emt 0:04:26]} Kf8 {[%emt 0:01:16]} 27. Bb3 {[%emt 0:00:35]} Rd2 {[%emt 0:01:58]} 28. Rf1 {[%emt 0:03:44]} Rb2 {[%emt 0:02:20]} 29. Rxc5 {[%emt 0:00:29]} dxc5 {[%emt 0:00:08]} 30. Qd3 {[%emt 0:00:10]} Rb8 {[%emt 0:02:22]} 31. Bc4 {[%emt 0:00:12]} R8b4 {[%emt 0:04:38]} 32. Bb5 {[%emt 0:00:39]} Qd4 {[%emt 0:04:56]} 33. Qh3 {[%emt 0:00:15]} Kg7 {[%emt 0:00:56]} 34. Qd7 {[%emt 0:00:37]} Rxf2 {[%emt 0:01:51]} 35. Rxf2 {[%emt 0:00:11]} Rb2 {[%emt 0:00:36]} 0-1

[Event "Guimaraes Open 2018"]
[Site "Guimaraes"]
[Date "2018.10.07"]
[Round "7"]
[White "Martinez Dourado, Daniel"]
[Black "Goncalves, Lucas Jordao"]
[Result "1-0"]
[ECO "C50"]
[WhiteElo "1764"]
[BlackElo "1401"]
[Annotator "NA"]
[PlyCount "51"]
[EventDate "2018.10.04"]
[EventType "swiss"]
[EventCountry "POR"]
[SourceTitle "playchess.com"]
[Source "ChessBase"]
[SourceQuality "1"]
[TimeControl "5400+30"]

1. e4 {[%emt 0:00:00]} e5 {[%emt 0:00:00]} 2. Nf3 {[%emt 0:00:00]} Nc6 {[%emt 0:00:00]} 3. Bc4 {[%emt 0:00:00]} Bc5 {[%emt 0:00:00]} 4. O-O {[%emt 0:00:00]} d6 {[%emt 0:00:00]} 5. c3 {[%emt 0:00:37]} Nf6 {[%emt 0:00:04]} 6. d3 {[%emt 0:00:24]} h6 {[%emt 0:01:26]} 7. Bb3 {[%emt 0:00:30]} O-O {[%emt 0:00:49]} 8. Nbd2 {[%emt 0:00:21]} a6 {[%emt 0:02:34]} 9. a4 {[%emt 0:00:36]} Ne7 {[%emt 0:00:54]} 10. Nc4 {[%emt 0:07:04]} Ng6 {[%emt 0:00:34]} 11. Be3 {[%emt 0:01:18]} Ba7 {[%emt 0:00:37]} 12. Bxa7 {[%emt 0:04:53]} Rxa7 {[%emt 0:01:14]} 13. Ne3 {[%emt 0:00:43]} Ng4 {[%emt 0:00:26]} 14. Nf5 {[%emt 0:07:46]} Nf6 {[%emt 0:00:32]} 15. h3 {[%emt 0:07:00]} Bxf5 {[%emt 0:02:26]} 16. exf5 {[%emt 0:00:47]} Ne7 {[%emt 0:03:14]} 17. g4 {[%emt 0:04:22]} Nh7 {[%emt 0:00:26]} 18. Qe2 {[%emt 0:00:35]} a5 {[%emt 0:01:06]} 19. Rae1 {[%emt 0:04:08]} Ra6 {[%emt 0:01:54]} 20. Nd2 {[%emt 0:01:06]} Nf6 {[%emt 0:00:23]} 21. f4 {[%emt 0:01:31]} Nc6 {[%emt 0:02:25]} 22. g5 {[%emt 0:01:09]} hxg5 {[%emt 0:00:07]} 23. fxg5 {[%emt 0:00:15]} Nh7 {[%emt 0:01:34]} 24. h4 {[%emt 0:01:45]} Rb6 {[%emt 0:02:31]} 25. Qh5 {[%emt 0:00:50]} e4 {[%emt 0:00:05]} 26. g6 {[%emt 0:02:17]} 1-0

[Event "Guimaraes Open 2018"]
[Site "Guimaraes"]
[Date "2018.10.07"]
[Round "7"]
[White "Martinez Ferreira, Oscar"]
[Black "Fernandes, Joao Pedro Murtinho"]
[Result "0-1"]
[ECO "A40"]
[WhiteElo "1752"]
[BlackElo "2067"]
[Annotator "NA"]
[PlyCount "61"]
[EventDate "2018.10.04"]
[EventType "swiss"]
[EventCountry "POR"]
[SourceTitle "playchess.com"]
[Source "ChessBase"]
[SourceQuality "1"]
[TimeControl "5400+30"]

1. d4 {[%emt 0:03:11]} e6 {[%emt 0:00:00]} 2. c4 {[%emt 0:00:05]} c5 {[%emt 0:00:00]} 3. d5 {[%emt 0:00:06]} exd5 {[%emt 0:00:00]} 4. cxd5 {[%emt 0:00:07]} d6 {[%emt 0:00:10]} 5. Nc3 {[%emt 0:00:05]} a6 {[%emt 0:00:12]} 6. a4 {[%emt 0:00:12]} g6 {[%emt 0:00:38]} 7. e4 {[%emt 0:00:22] A43: Schmid Benoni} Bg7 {[%emt 0:00:17]} 8. h3 {[%emt 0:00:29]} Ne7 {[%emt 0:00:15]} 9. Nf3 {[%emt 0:00:14]} O-O {[%emt 0:00:23]} 10. Bd3 {[%emt 0:00:08]} Nd7 {[%emt 0:03:02]} 11. g4 $146 {[%emt 0:01:05]} ({Predecessor:} 11. O-O h6 12. Bf4 Qc7 13. Bh2 Rd8 14. Rc1 g5 15. Qd2 {1-0 (78) Kuljasevic,D (2578)-Neverov,V (2489) Legnica 2013}) 11... Ne5 {[%emt 0:02:16]} 12. Nxe5 {[%emt 0:00:27]} Bxe5 {[%emt 0:00:20]} 13. Bh6 {[%emt 0:01:14]} Re8 {[%emt 0:02:38]} 14. Be3 {[%emt 0:02:17]} Bd7 {[%emt 0:07:57]} 15. h4 {[%emt 0:07:01]} c4 {[%emt 0:06:13]} 16. Bxc4 {[%emt 0:03:52]} Qc8 {[%emt 0:01:54]} 17. Qd3 {[%emt 0:00:31]} Bxg4 {[%emt 0:01:56]} 18. f4 {[%emt 0:04:53] [#]} Bg7 $2 {[%emt 0:01:53]} (18... Bxc3+ $1 $19 19. Qxc3 Bf3) 19. Kd2 {[%emt 0:00:22]} (19. Kf2 $15) 19... Bf3 {[%emt 0:15:33]} 20. Rh2 {[%emt 0:01:52]} b5 {[%emt 0:02:21]} 21. axb5 {[%emt 0:00:12]} axb5 {[%emt 0:00:14]} 22. Rxa8 {[%emt 0:00:22]} Qxa8 {[%emt 0:00:30]} 23. Bxb5 {[%emt 0:00:34]} Qa1 $2 {[%emt 0:02:07]} ({Black should try} 23... Bxc3+ $1 $17 24. bxc3 Qa1) 24. Bxe8 {[%emt 0:02:54]} Qxb2+ {[%emt 0:01:24]} 25. Qc2 {[%emt 0:03:22]} Bxc3+ {[%emt 0:00:14]} 26. Kd3 {[%emt 0:00:05]} Qa3 {[%emt 0:08:22]} 27. Qxc3 $11 {[%emt 0:01:32]} (27. Qa4 $18 Qxa4 28. Bxa4) 27... Bxe4+ {[%emt 0:02:06]} 28. Kc4 {[%emt 0:03:22]} Bxd5+ {[%emt 0:00:48]} 29. Kd3 {[%emt 0:00:06]} Be4+ {[%emt 0:00:39]} 30. Kc4 {[%emt 0:00:06]} d5+ {[%emt 0:00:22]} 31. Kd4 0-1